bitfinex-derivatives/quotes_ETHF0:USTF0_20250411
["timestamp","ask_amount","ask_price","bid_price","bid_amount"]
[1744373516477,6.18810134,1555.8,1555.7,1.28634]
[1744373516779,6.18810134,1555.8,1555.7,3.88204]
[1744373517468,4.90180134,1555.8,1555.7,3.88204]
[1744373518176,4.90180134,1555.8,1555.7,7.08984]
[1744373518482,4.90180134,1555.8,1555.7,12.08984]
[1744373519179,4.90180134,1555.8,1555.7,1.28634]
[1744373519971,4.90180134,1555.8,1555.7,9.49414]
[1744373520474,0.12653959,1555.8,1555.7,9.49414]
[1744373520666,0.00963175,1556.2,1556.1,1.286]
[1744373520867,0.00963175,1556.2,1556.1,9.6728]
[1744373521169,0.00963175,1556.2,1556.1,55.4728]
[1744373521370,17.51430768,1556.7,1556.6,1.28559]
[1744373521679,17.51430768,1556.7,1556.6,6.46459]
[1744373521680,22.51430768,1556.7,1556.6,6.46459]
[1744373521979,15.00600768,1556.7,1556.6,6.46459]
[1744373523575,18.66471768,1556.7,1556.6,6.46459]
[1744373523881,17.37920768,1556.7,1556.6,6.46459]
[1744373524079,2.3732,1556.7,1556.6,6.46459]
[1744373526485,3.65871,1556.7,1556.6,6.46459]
[1744373527075,8.65871,1556.7,1556.6,1.28559]
[1744373527277,3.2078,1556.4,1555.2,3.31960597]
[1744373527581,1.28671,1555.3,1555.0,1.28691]
[1744373527787,5.7004,1555.2,1554.4,3.21849]
[1744373528077,3.2078,1555.0,1554.7,0.11188056]
[1744373528280,2.5246,1554.9,1554.8,1.28704]
[1744373528485,1.22905,1554.9,1554.8,1.28704]
[1744373528784,0.00963175,1555.0,1554.9,1.287]
[1744373528988,0.00963175,1555.0,1554.9,6.9513]
[1744373529282,0.00963175,1555.0,1554.9,8.7435]
[1744373529481,0.00963175,1555.0,1554.9,14.1825]
[1744373530081,0.00963175,1555.0,1554.9,2.4565]
[1744373530278,6.29654175,1555.0,1554.9,5.439]
[1744373530481,1.28713,1554.8,1554.5,5.439]
[1744373530683,3.2078,1554.7,1554.6,1.28725]
[1744373530983,3.2078,1554.9,1554.7,1.28712]
[1744373531188,3.2078,1554.9,1554.8,6.72608]
[1744373532081,5.7496,1554.9,1554.8,6.72608]
[1744373532690,4.17286352,1554.9,1554.8,6.72608]
[1744373532985,4.17286352,1554.9,1554.8,11.72608]
[1744373533383,0.96506352,1554.9,1554.8,11.72608]
[1744373533775,5.27e-06,1555.0,1554.8,13.0054]
[1744373533980,15.54900042,1555.4,1554.9,5.7742]
[1744373534184,18.09080042,1555.4,1555.3,1.28667]
[1744373534390,10.86085042,1555.4,1555.3,47.52667]
[1744373534684,19.23456257,1555.6,1555.3,46.24]
[1744373534885,2.5012,1555.5,1555.4,1.28658]
[1744373536187,7.5012,1555.5,1555.3,40.80963175]
[1744373536391,5.709,1555.5,1555.3,46.24963175]
[1744373536579,10.709,1555.5,1555.3,46.24963175]
[1744373536786,12.7545,1555.5,1555.3,5.44963175]
[1744373537088,7.7545,1555.5,1555.3,5.44963175]
[1744373537289,7.7545,1555.5,1555.4,1.28658]
[1744373537588,7.7545,1555.5,1555.4,6.72658]
[1744373538184,7.7545,1555.5,1555.4,4.45952483]
[1744373538381,12.7545,1555.5,1555.4,4.45952483]
[1744373538582,7.7545,1555.5,1555.4,5.74610483]
[1744373538781,7.7545,1555.5,1555.4,1.28658]
[1744373539089,7.7545,1555.5,1555.4,6.72658]
[1744373541192,5.709,1555.5,1555.4,6.72658]
[1744373541493,9.92717995,1555.6,1555.5,1.2865]
[1744373541790,9.92717995,1555.6,1555.5,3.7609]
[1744373541986,0.00963175,1555.6,1555.5,3.7609]
[1744373542192,2.40453175,1555.6,1555.5,1.2865]
[1744373542788,2.40453175,1555.6,1555.5,3.7609]
[1744373543385,0.00963175,1555.6,1555.5,3.7609]
[1744373544492,0.00963175,1555.6,1555.5,8.7609]
[1744373544690,1.75e-06,1555.6,1555.5,8.7609]
[1744373544897,10.62223995,1555.9,1555.8,1.28625]
[1744373545090,10.62223995,1555.9,1555.8,6.72625]
[1744373545482,10.62223995,1555.9,1555.8,47.52625]
[1744373545982,6.82368995,1555.9,1555.8,47.52625]
[1744373546183,3.62397995,1555.9,1555.8,52.52625]
[1744373546387,0.00963175,1556.0,1555.8,55.73405]
[1744373546587,44.9871878,1556.4,1556.3,1.28584]
[1744373546588,41.7793878,1556.4,1556.3,1.28584]
[1744373546782,41.7793878,1556.4,1556.3,9.93364]
[1744373546783,38.0693778,1556.4,1556.3,9.93364]
[1744373546995,2.2714,1556.5,1556.4,1.28576]
[1744373547295,2.2714,1556.5,1556.4,44.35096]
[1744373549998,2.2714,1556.5,1556.4,47.52476]
[1744373550201,2.2714,1556.5,1556.4,50.73256]
[1744373550791,2.2714,1556.5,1556.4,47.52476]
[1744373551906,2.2714,1556.5,1556.4,53.21516]
[1744373552091,0.00963175,1556.6,1556.5,1.28567]
[1744373552298,1.75e-06,1556.6,1556.5,3.76827]
[1744373554802,1.75e-06,1556.6,1556.5,1.28567]
[1744373555300,1.75e-06,1556.6,1556.5,6.72367]
[1744373556008,1.75e-06,1556.6,1556.5,9.13007]
[1744373556694,1.75e-06,1556.6,1556.5,3.69207]
[1744373556895,1.75e-06,1556.6,1556.5,6.72267]
[1744373557301,1.75e-06,1556.6,1556.5,9.12907]
[1744373558004,1.75e-06,1556.6,1556.5,1.77008166]
[1744373558406,1.75e-06,1556.6,1556.5,4.17648166]
[1744373560408,1.75e-06,1556.6,1556.5,3.69207]
[1744373560704,1.75e-06,1556.6,1556.5,1.28567]
[1744373561207,2.25120175,1556.6,1556.5,1.28567]
[1744373561807,2.25120175,1556.6,1556.5,6.71967]
[1744373562713,3.2078,1556.9,1556.8,1.28543]
[1744373563011,3.19474921,1556.9,1556.8,6.71943]
[1744373565815,5.54624921,1556.9,1556.8,6.71943]
[1744373566708,5.54624921,1556.9,1556.8,5.434]
[1744373566916,2.3515,1556.9,1556.8,6.71943]
[1744373567613,10.5593,1556.9,1556.8,6.71943]
[1744373568110,5.5593,1556.9,1556.8,6.71943]
[1744373568520,5.5593,1556.9,1556.8,1.28543]
[1744373569017,5.5593,1556.9,1556.7,0.93533535]
[1744373569220,5.5593,1556.9,1556.8,1.28543]
[1744373569419,5.5593,1556.9,1556.7,2.22078535]
[1744373569612,2.3515,1556.9,1556.8,1.28543]
[1744373570021,2.3515,1556.9,1556.7,6.71845]
[1744373570022,3.63689,1556.9,1556.7,6.71845]
[1744373570422,3.63689,1556.9,1556.7,6.71843]
[1744373570628,2.3515,1556.9,1556.7,1.28543]
[1744373570822,3.63692,1556.9,1556.8,1.28543]
[1744373571015,2.3515,1556.9,1556.8,1.28543]
[1744373572124,2.3515,1556.9,1556.5,3.21417]
[1744373572125,7.3515,1556.9,1556.5,3.21417]
[1744373572327,3.2078,1556.8,1556.7,1.28543]
[1744373572519,6.77103,1556.8,1556.7,1.28543]
[1744373572820,5.4856,1556.8,1556.7,1.28543]
[1744373573327,6.77103,1556.8,1556.7,1.28543]
[1744373573927,5.4856,1556.8,1556.7,1.28543]
[1744373575528,2.2778,1556.8,1556.7,1.28543]
[1744373579928,3.56323,1556.8,1556.7,1.28543]
[1744373580328,2.2778,1556.8,1556.7,1.28543]
[1744373581527,3.56323,1556.8,1556.7,1.28543]
[1744373581928,1.28558,1556.7,1556.6,1.28553]
[1744373582234,2.376,1556.7,1556.6,1.27247921]
[1744373582533,2.376,1556.7,1556.6,42.07247921]
[1744373583624,2.376,1556.7,1556.6,44.30307921]
[1744373584135,2.376,1556.7,1556.6,42.07247921]
[1744373584828,2.376,1556.7,1556.6,44.30307921]
[1744373585132,2.376,1556.7,1556.4,3.21437]
[1744373585429,3.66155,1556.7,1556.6,1.28559]
[1744373585927,10.5898,1556.7,1556.3,5.44263175]
[1744373586134,1.28575,1556.5,1556.4,1.28572]
[1744373586432,4.49355,1556.5,1556.4,1.28572]
[1744373586637,1.28576,1556.4,1556.3,0.00963175]
[1744373586831,1.286,1556.1,1556.0,1.43418]
[1744373587026,4.4938,1556.1,1556.0,0.14815]
[1744373587329,9.4938,1556.1,1556.0,0.14815]
[1744373588227,4.4938,1556.1,1556.0,0.14815]
[1744373588936,12.95358454,1556.1,1556.0,0.14815]
[1744373589437,15.23198454,1556.1,1556.0,1.43424]
[1744373590330,13.94598454,1556.1,1556.0,1.43424]
[1744373590724,13.94598454,1556.1,1556.0,3.78014]
[1744373591033,10.73818454,1556.1,1556.0,3.78014]
[1744373591236,12.02418454,1556.1,1556.0,1.43424]
[1744373591434,15.23198454,1556.1,1556.0,1.43424]
[1744373591636,15.23198454,1556.1,1556.0,0.14815]
[1744373591836,15.23198454,1556.1,1556.0,1.43424]
[1744373592035,15.23198454,1556.1,1556.0,0.14815]
[1744373592234,33.24435857,1556.1,1556.0,1.43424]
[1744373592532,33.24435857,1556.1,1556.0,0.14815]
[1744373593340,38.24435857,1556.1,1556.0,0.14815]
[1744373593731,33.24435857,1556.1,1556.0,0.14815]
[1744373595038,23.2575705,1556.1,1556.0,0.14815]
[1744373598241,7.73659774,1556.1,1556.0,0.14815]
[1744373598443,1.28625,1555.8,1555.7,1.28632]
[1744373598840,3.68835,1555.8,1555.7,1.28632]
[1744373599641,1.28634,1555.7,1555.6,0.00963175]
[1744373599844,6.89624,1555.7,1555.6,0.00963175]
[1744373600141,3.2078,1555.7,1555.6,1.29605175]
[1744373600340,10.77856,1556.0,1555.9,1.28617]
[1744373600745,19.3470652,1556.0,1555.9,1.28617]
[1744373601441,18.0609052,1556.0,1555.9,1.28617]
[1744373601639,15.6588052,1556.0,1555.9,1.28617]
[1744373602647,12.4510052,1556.0,1555.9,1.28617]
[1744373603943,3.73492,1556.1,1556.0,1.28609]
[1744373604360,3.73492,1556.1,1555.8,5.48196]
[1744373604361,1.28609,1556.0,1555.9,3.54571]
[1744373604543,3.60489,1556.0,1555.9,3.54571]
[1744373604842,3.60489,1556.0,1555.7,8.4418]
[1744373604843,1.28624,1555.9,1555.7,8.4418]
[1744373605046,1.28625,1555.8,1555.7,11.98768]
[1744373608341,1.28625,1555.8,1555.7,10.7014]
[1744373608648,1.28625,1555.8,1555.7,4.49414]
[1744373610352,3.60503,1555.9,1555.8,1.28625]
[1744373610950,1.28625,1555.8,1555.7,6.83716]
[1744373611153,3.58125,1555.8,1555.7,3.62936]
[1744373611654,1.28634,1555.7,1555.6,1.29597175]
[1744373611863,6.78914,1555.7,1555.6,3.63907175]
[1744373612152,3.58134,1555.7,1555.6,3.63907175]
[1744373612856,2.295,1555.7,1555.6,3.63907175]
[1744373613153,5.45860493,1555.9,1555.8,1.28625]
[1744373613349,5.45860493,1555.9,1555.6,8.78481175]
[1744373613350,1.28625,1555.8,1555.7,3.65057]
[1744373613549,3.68945,1555.8,1555.7,3.65057]
[1744373615854,10.70711039,1555.9,1555.8,1.28625]
[1744373616158,10.70711039,1555.9,1555.8,3.65055]
[1744373616451,7.49931039,1555.9,1555.8,3.65055]
[1744373616851,7.49931039,1555.9,1555.8,8.65055]
[1744373617553,7.49931039,1556.1,1555.8,8.65055]
[1744373617755,7.49931039,1556.1,1556.0,1.28609]
[1744373618357,7.49931039,1556.1,1556.0,3.65959]
[1744373619945,8.78531039,1556.1,1556.0,3.65959]
[1744373620151,11.13031039,1556.1,1556.0,3.65959]
[1744373620458,11.13031039,1556.1,1556.0,2.3735]
[1744373620646,11.13031039,1556.1,1556.0,3.65959]
[1744373621751,3.631,1556.1,1556.0,3.65959]
[1744373623265,1.28609,1556.0,1555.9,8.63162]
[1744373623562,1.28609,1556.0,1555.9,5.235]
[1744373624057,3.69289,1556.0,1555.9,5.235]
[1744373624963,3.69289,1556.0,1555.9,6.52117]
[1744373625156,2.4068,1556.0,1555.9,6.52117]
[1744373625356,11.67150695,1556.1,1556.0,1.28609]
[1744373625757,11.67150695,1556.1,1556.0,3.57449]
[1744373625957,14.07130695,1556.1,1556.0,3.57449]
[1744373626352,10.86350695,1556.1,1556.0,3.57449]
[1744373626660,8.46370695,1556.1,1556.0,3.57449]
[1744373627155,1.28609,1556.0,1555.9,6.5211]
[1744373627360,3.68589,1556.0,1555.9,5.235]
[1744373627863,1.28625,1555.8,1555.7,6.2973]
[1744373628058,5.6076,1555.9,1555.7,5.011]
[1744373628261,2.3998,1555.8,1555.7,5.011]
[1744373628456,3.68605,1555.8,1555.7,5.011]
[1744373628764,1.28634,1555.7,1555.6,0.00963175]
[1744373628967,7.92674,1555.7,1555.6,0.00963175]
[1744373630456,3.2078,1555.7,1555.6,0.00963175]
[1744373630661,3.2078,1555.7,1555.6,4.62385175]
[1744373631157,28.80640645,1555.7,1555.6,4.60832417]
[1744373632064,28.80640645,1555.7,1555.6,9.60832417]
[1744373632260,28.80640645,1555.7,1555.6,4.60832417]
[1744373632862,32.00130645,1555.7,1555.6,4.60832417]
[1744373633066,14.19111088,1555.7,1555.6,4.60832417]
[1744373633270,10.99621088,1555.7,1555.6,4.60832417]
[1744373634167,10.99621088,1555.7,1555.5,3.84130394]
[1744373634373,14.19111088,1555.7,1555.6,1.28642]
[1744373635563,15.47745088,1555.7,1555.6,1.28642]
[1744373635766,14.19111088,1555.7,1555.6,1.28642]
[1744373637464,14.19111088,1555.7,1555.6,4.67472]
[1744373637965,15.47745088,1555.7,1555.6,1.28642]
[1744373638166,14.19111088,1555.7,1555.6,1.28642]
[1744373638665,0.96439656,1555.7,1555.6,7.49632]
[1744373639966,4.31099656,1555.7,1555.6,7.49632]
[1744373642067,11.84434387,1555.7,1555.6,1.28642]
[1744373642464,11.84434387,1555.7,1555.6,4.50572]
[1744373643160,11.84434387,1555.7,1555.6,1.28642]
[1744373643364,1.28642,1555.6,1555.5,5.12776394]
[1744373643566,4.50872,1555.6,1555.5,5.12776394]
[1744373644171,3.2223,1555.6,1555.5,5.12776394]
[1744373644672,4.18669656,1555.6,1555.5,5.12776394]
[1744373645065,0.96439656,1555.6,1555.5,11.48096394]
[1744373647274,0.96439656,1555.6,1555.5,16.48096394]
[1744373647676,5.98541575,1555.6,1555.5,16.48096394]
[1744373648270,2.77062256,1555.6,1555.5,16.48096394]
[1744373649473,2.56e-06,1555.6,1555.5,16.48096394]
[1744373650274,7.53279959,1555.7,1555.6,1.28642]
[1744373650469,7.53279959,1555.7,1555.6,7.95952]
[1744373653778,10.98709959,1555.8,1555.7,1.28634]
[1744373653979,10.03181432,1556.0,1555.9,1.28617]
[1744373654276,10.03181432,1556.0,1555.9,9.39597]
[1744373654479,13.22431432,1556.0,1555.9,12.90427]
[1744373655073,10.03181432,1556.0,1555.9,12.90427]
[1744373655276,10.03181432,1556.0,1555.9,15.71017]
[1744373655879,8.15e-06,1556.1,1556.0,1.28609]
[1744373656078,0.00963175,1556.2,1556.1,1.286]
[1744373656381,0.00963175,1556.2,1556.1,4.4938]
[1744373656585,1.75e-06,1556.2,1556.1,7.4549]
[1744373657084,15.00600768,1556.4,1556.3,1.28584]
[1744373657274,20.83680896,1556.5,1556.3,1.28584]
[1744373657275,3.3298,1556.5,1556.4,1.28576]
[1744373659285,3.3298,1556.5,1556.4,4.74796]
[1744373661688,0.00963175,1556.6,1556.5,1.28567]
[1744373661889,3.72683175,1556.6,1556.5,4.74787]
[1744373662089,3.72683175,1556.6,1556.5,7.95567]
[1744373663684,0.00963175,1556.6,1556.5,7.95567]
[1744373665086,0.00963175,1556.6,1556.5,8.59887]
[1744373665696,2.9024,1557.0,1556.9,1.28534]
[1744373665984,3.21215,1557.5,1557.2,1.2851]
[1744373665985,2.9724,1557.3,1557.2,1.2851]
[1744373666191,2.9724,1557.3,1557.2,6.1851]
[1744373666994,6.509,1557.3,1557.2,6.1851]
[1744373667296,9.7168,1557.3,1557.2,6.1851]
[1744373667491,6.509,1557.3,1557.2,6.1851]
[1744373669799,3.5366,1557.3,1557.2,6.1851]
[1744373670092,3.5366,1557.3,1557.2,9.6027]
[1744373670598,3.5366,1557.3,1557.2,50.4027]
[1744373671295,3.5366,1557.3,1557.2,46.9851]
[1744373672200,3.5366,1557.3,1557.2,50.5423]
[1744373674301,1.75e-06,1557.4,1557.3,1.28501]
[1744373674599,1.75e-06,1557.4,1557.3,8.02271]
[1744373674997,1.75e-06,1557.4,1557.3,48.82271]
[1744373676206,1.75e-06,1557.4,1557.3,49.33672699]
[1744373677100,1.75e-06,1557.4,1557.3,45.80682699]
[1744373677299,1.75e-06,1557.4,1557.3,42.08501]
[1744373677494,1.75e-06,1557.4,1557.3,46.98201]
[1744373677799,3.52100175,1557.4,1557.3,42.08501]
[1744373678107,3.52100175,1557.4,1557.3,46.98201]
[1744373679595,8.52100175,1557.4,1557.3,46.98201]
[1744373680404,3.52100175,1557.4,1557.3,46.98201]
[1744373681400,3.52100175,1557.4,1557.3,6.18201]
[1744373681607,8.52100175,1557.4,1557.3,6.18201]
[1744373682309,3.52100175,1557.4,1557.3,6.18201]
[1744373682806,1.75e-06,1557.4,1557.3,9.38981]
[1744373683110,6.2683,1558.0,1557.9,1.28452]
[1744373683311,14.4219,1558.0,1557.9,6.09552]
[1744373684108,9.4219,1558.0,1557.9,1.28452]
[1744373684310,0.00963175,1558.1,1558.0,1.28444]
[1744373684500,10.87272247,1558.3,1558.2,1.28427]
[1744373684702,6.2439,1558.7,1558.6,1.28394]
[1744373685011,6.2439,1558.7,1558.6,6.09494]
[1744373685509,7.52776,1558.7,1558.6,4.811]
[1744373685814,3.2078,1558.7,1558.6,6.09494]
[1744373685998,15.01563943,1558.8,1558.7,1.28386]
[1744373686204,18.60423943,1558.8,1558.7,1.28386]
[1744373688208,3.59823175,1558.8,1558.7,1.28386]
[1744373688714,9.88207175,1558.8,1558.6,4.809]
[1744373689009,3.2078,1558.7,1558.6,6.09294]
[1744373689213,6.7238,1558.7,1558.6,6.09294]
[1744373689408,11.7238,1558.7,1558.6,4.809]
[1744373689712,13.00766,1558.7,1558.6,4.809]
[1744373690110,13.00766,1558.7,1558.5,1.29363175]
[1744373690307,8.00766,1558.7,1558.6,4.809]
[1744373690513,11.7238,1558.7,1558.5,0.00963175]
[1744373690711,13.00773,1558.7,1558.5,1.29362175]
[1744373690913,13.00768,1558.7,1558.6,1.28394]
[1744373691214,11.7238,1558.7,1558.5,0.00963175]
[1744373691406,1.28394,1558.6,1558.5,0.00963175]
[1744373691601,1.28402,1558.5,1558.2,4.809]
[1744373691807,6.5398,1558.4,1558.3,1.28412]
[1744373692009,11.03171,1558.4,1558.3,1.28412]
[1744373692205,16.03171,1558.4,1558.2,6.0922]
[1744373692415,11.03171,1558.4,1558.3,1.28419]
[1744373692709,1.28419,1558.3,1558.2,4.81763175]
[1744373692917,3.6923,1558.3,1558.2,6.10190175]
[1744373693210,8.6923,1558.3,1558.2,6.10190175]
[1744373693414,9.97649,1558.3,1558.2,6.10190175]
[1744373694613,9.97649,1558.3,1558.2,1.29390175]
[1744373694812,13.19559,1558.3,1558.2,1.29390175]
[1744373696010,13.19559,1558.3,1558.2,0.00963175]
[1744373696207,6.9114,1558.3,1558.2,1.29390175]
[1744373697614,6.9114,1558.3,1558.0,14.82256]
[1744373697816,6.9114,1558.3,1558.2,1.28427]
[1744373698616,6.9114,1558.3,1558.0,8.4004]
[1744373698826,8.19565,1558.3,1558.2,1.28427]
[1744373699912,6.9114,1558.3,1558.2,1.28427]
[1744373700120,8.1956,1558.3,1558.2,1.28427]
[1744373700815,6.9114,1558.3,1558.2,1.28427]
[1744373701017,3.6923,1558.3,1558.2,1.28427]
[1744373701521,1.28427,1558.2,1558.1,1.29393175]
[1744373701719,4.49207,1558.2,1558.1,1.29393175]
[1744373702017,3.6923,1558.3,1558.1,0.00963175]
[1744373702220,1.28427,1558.2,1558.1,1.29394175]
[1744373702417,4.97656,1558.3,1558.2,1.28427]
[1744373702925,3.6923,1558.3,1558.2,1.28427]
[1744373703521,3.1849,1558.7,1558.3,3.21048]
[1744373703522,6.3927,1558.7,1558.3,3.21048]
[1744373703822,3.562,1558.6,1558.5,1.28402]
[1744373704213,3.562,1558.6,1558.5,4.80182]
[1744373704409,3.562,1558.6,1558.4,4.808]
[1744373704613,3.562,1558.6,1558.5,4.78052]
[1744373705022,9.95077428,1558.8,1558.7,1.28386]
[1744373705218,9.95077428,1558.8,1558.7,6.09186]
[1744373705624,9.95077428,1558.8,1558.7,14.02836]
[1744373705811,9.95077428,1558.8,1558.7,6.09186]
[1744373706517,9.95077428,1558.8,1558.7,9.13036]
[1744373706720,0.00963175,1558.8,1558.7,12.62686]
[1744373707723,0.00963175,1558.8,1558.7,15.83466]
[1744373707920,0.00963175,1558.8,1558.7,17.62686]
[1744373708225,0.00963175,1558.8,1558.7,20.83466]
[1744373708521,0.00963175,1558.8,1558.7,53.42686]
[1744373708922,1.75e-06,1558.8,1558.7,58.42686]
[1744373712927,1.75e-06,1558.8,1558.7,59.06846]
[1744373713630,6.1868,1559.4,1559.3,1.28337]
[1744373713817,6.1868,1559.4,1559.3,6.05637]
[1744373714018,7.47008,1559.4,1559.3,6.05637]
[1744373714221,7.47008,1559.4,1559.3,4.773]
[1744373714432,7.47008,1559.4,1559.3,6.05637]
[1744373714825,12.47008,1559.4,1559.3,4.773]
[1744373715132,16.00078,1559.4,1559.3,6.05637]
[1744373715933,14.7175,1559.4,1559.3,6.05637]
[1744373716235,9.7175,1559.4,1559.3,6.05637]
[1744373717434,6.7385,1559.4,1559.3,6.05637]
[1744373721346,8.02178,1559.4,1559.3,4.773]
[1744373721543,10.96278,1559.4,1559.3,6.05637]
[1744373721744,9.6795,1559.4,1559.3,6.05637]
[1744373723146,9.6795,1559.4,1559.3,1.28337]
[1744373723347,10.96278,1559.4,1559.3,1.28337]
[1744373723548,1.28337,1559.3,1559.2,1.29301175]
[1744373723737,3.7132,1559.3,1559.2,1.29301175]
[1744373726647,9.99657,1559.3,1559.2,0.00963175]
[1744373726949,1.28354,1559.1,1559.0,1.28355]
[1744373727248,3.2078,1559.1,1559.0,1.28355]
[1744373727450,4.49133,1559.1,1559.0,1.28355]
[1744373727649,6.7685,1559.1,1559.0,1.28355]
[1744373727846,8.05203,1559.1,1559.0,1.28355]
[1744373728046,6.7685,1559.1,1559.0,1.28355]
[1744373728752,8.05203,1559.1,1559.0,1.28355]
[1744373729260,6.7685,1559.1,1559.0,1.28355]
[1744373730855,3.5607,1559.1,1559.0,1.28355]
[1744373731659,8.05209,1559.1,1558.9,0.00963175]
[1744373731850,6.7685,1559.1,1559.0,1.28361]
[1744373732051,4.49133,1559.1,1559.0,1.28361]
[1744373733257,3.2078,1559.1,1559.0,1.28361]
[1744373734853,3.1268,1559.2,1559.0,1.28361]
[1744373735060,4.41025,1559.2,1559.1,1.28353]
[1744373735557,3.1268,1559.2,1559.1,1.28353]
[1744373736358,4.41025,1559.2,1559.1,1.28353]
[1744373736654,3.1268,1559.2,1559.1,1.28353]
[1744373739058,7.4685843,1559.4,1559.3,1.28337]
[1744373739460,15.04952605,1559.5,1559.4,1.28328]
[1744373740360,13.76631605,1559.5,1559.4,1.28328]
[1744373740555,10.55851605,1559.5,1559.4,1.28328]
[1744373740763,7.47821605,1559.5,1559.4,1.28328]
[1744373741465,7.47821605,1559.5,1559.4,5.03168]
[1744373742258,7.47821605,1559.5,1559.4,8.23948]
[1744373742563,7.47821605,1559.5,1559.4,13.23948]
[1744373743064,7.47821605,1559.5,1559.4,54.03948]
[1744373743863,7.47821605,1559.5,1559.4,49.03948]
[1744373744364,7.47821605,1559.5,1559.4,45.83168]
[1744373744561,7.47821605,1559.5,1559.4,42.08328]
[1744373746668,8.76141605,1559.5,1559.4,40.8]
[1744373747171,1.29283175,1559.5,1559.4,42.08328]
[1744373748063,0.00963175,1559.5,1559.4,42.08328]
[1744373748471,1.29283175,1559.5,1559.4,42.08328]
[1744373749172,4.50063175,1559.5,1559.4,42.08328]
[1744373749468,7.40653175,1559.5,1559.4,42.08328]
[1744373749669,7.40653175,1559.5,1559.4,1.28328]
[1744373750763,8.36888456,1559.5,1559.4,1.28328]
[1744373751363,3.87788456,1559.5,1559.4,1.28328]
[1744373751772,7.49748456,1559.5,1559.4,1.28328]
[1744373752071,4.59158456,1559.5,1559.4,1.28328]
[1744373755468,12.1302632,1559.5,1559.4,1.28328]
[1744373756074,8.5106632,1559.5,1559.4,6.28328]
[1744373756267,8.5106632,1559.5,1559.4,12.81678]
[1744373758075,8.5106632,1559.5,1559.4,13.29999133]
[1744373759076,0.00963175,1559.5,1559.4,13.29999133]
[1744373760578,7.53867864,1559.7,1559.6,1.28312]
[1744373760780,7.53867864,1559.7,1559.6,9.18092]
[1744373761179,23.41187306,1559.9,1559.8,1.28295]
[1744373761376,23.41187306,1559.9,1559.8,4.49075]
[1744373761581,23.41187306,1559.9,1559.8,7.42205]
[1744373761879,23.41187306,1559.9,1559.8,11.12085]
[1744373762076,23.41187306,1559.9,1559.8,11.64384333]
[1744373762580,26.83997306,1559.9,1559.8,1.28295]
[1744373762773,3.4281,1559.9,1559.8,1.28295]
[1744373763776,6.5009,1559.9,1559.8,1.28295]
[1744373765968,6.5009,1559.9,1559.7,0.00963175]
[1744373766173,6.5747,1559.8,1559.7,0.00963175]
[1744373766676,6.5747,1559.8,1559.7,42.09267175]
[1744373766873,7.85765,1559.8,1559.7,42.09267175]
[1744373767074,12.85765,1559.8,1559.7,40.80963175]
[1744373767274,1.2832,1559.5,1559.4,4.69]
[1744373767478,4.491,1559.5,1559.4,4.69]
[1744373767882,1.28332,1559.4,1559.2,4.69]
[1744373768085,3.2078,1559.3,1559.2,5.97337]
[1744373768381,4.49117,1559.3,1559.2,4.69]
[1744373768569,8.02317,1559.3,1559.2,4.69]
[1744373768774,13.02317,1559.3,1559.2,4.69]
[1744373768983,1.28345,1559.2,1559.1,0.00963175]
[1744373769281,4.81545,1559.2,1559.1,0.00963175]
[1744373769480,9.81545,1559.2,1559.1,0.00963175]
[1744373770683,8.532,1559.2,1559.1,1.29316175]
[1744373770983,3.532,1559.2,1559.1,1.29316175]
[1744373771775,8.02325,1559.2,1559.1,1.29316175]
[1744373771985,8.02325,1559.2,1559.1,0.00963175]
[1744373772482,13.02325,1559.2,1559.1,0.00963175]
[1744373772987,13.02325,1559.2,1559.1,1.29316175]
[1744373773179,8.02325,1559.2,1559.1,1.29316175]
[1744373773984,8.02325,1559.2,1559.1,0.00963175]
[1744373775584,8.02325,1559.2,1559.1,1.29316175]
[1744373775585,3.532,1559.2,1559.1,1.29316175]
[1744373775882,4.81545,1559.2,1559.1,1.29316175]
[1744373776076,8.02325,1559.2,1559.1,0.00963175]
[1744373778382,13.02325,1559.2,1559.1,0.00963175]
[1744373779288,8.02325,1559.2,1559.1,0.00963175]
[1744373779484,13.02325,1559.2,1559.1,0.00963175]
[1744373779788,8.02325,1559.2,1559.1,0.00963175]
[1744373779983,8.02325,1559.2,1559.1,1.29316175]
[1744373780180,8.02325,1559.2,1559.1,0.00963175]
[1744373780387,8.98594314,1559.2,1559.1,0.00963175]
[1744373780588,1.28353,1559.1,1559.0,1.27984542]
[1744373780784,4.72843,1559.1,1559.0,1.27984542]
[1744373780979,3.4449,1559.1,1559.0,5.96984542]
[1744373781990,4.72843,1559.1,1559.0,5.96984542]
[1744373782587,4.72843,1559.1,1559.0,4.69]
[1744373782793,4.72843,1559.1,1559.0,5.97361]
[1744373782994,4.72843,1559.1,1559.0,4.69]
[1744373783795,1.28361,1559.0,1558.9,42.09326175]
[1744373783997,4.92221,1559.0,1558.9,42.09333175]
[1744373784392,4.92221,1559.0,1558.9,40.80963175]
[1744373785499,8.20321,1559.0,1558.9,42.09333175]
[1744373785897,11.41101,1559.0,1558.9,1.29333175]
[1744373786102,8.20321,1559.0,1558.9,1.29333175]
[1744373786402,8.20321,1559.0,1558.9,42.09333175]
[1744373787102,8.20321,1559.0,1558.9,40.80963175]
[1744373788005,8.20321,1559.0,1558.9,42.09333175]
[1744373788504,9.50261012,1559.2,1558.9,46.78433175]
[1744373788704,9.50261012,1559.2,1559.1,1.28353]
[1744373789202,1.28358,1559.1,1559.0,1.28354]
[1744373789499,1.28361,1559.0,1558.9,46.78425175]
[1744373789705,4.49141,1559.0,1558.9,46.78425175]
[1744373790103,4.49141,1559.0,1558.9,42.09325175]
[1744373791705,3.2078,1559.0,1558.9,42.09325175]
[1744373791906,3.2078,1559.0,1558.9,45.85185175]
[1744373792109,8.24211,1559.0,1558.9,45.85185175]
[1744373792403,5.03431,1559.0,1558.9,45.85185175]
[1744373792608,8.21911012,1559.2,1559.1,1.28353]
[1744373792906,13.00826012,1559.2,1559.1,1.28353]